bitfinex-derivatives/quotes_ETHF0:USTF0_20250524
["timestamp","ask_amount","ask_price","bid_price","bid_amount"]
[1748112427589,17.602,2556.7,2556.6,2.3396698]
[1748112427778,2.80946652,2556.8,2556.6,2.3396698]
[1748112427984,17.602,2556.7,2556.6,2.0582]
[1748112428286,2.80946652,2556.8,2556.6,2.33965631]
[1748112428481,17.602,2556.7,2556.6,2.0582]
[1748112428693,17.602,2556.7,2556.6,3.36928656]
[1748112429097,18.38402,2556.7,2556.6,3.36928656]
[1748112430698,17.602,2556.7,2556.6,3.36928656]
[1748112430886,18.38402,2556.7,2556.6,3.36928656]
[1748112431086,17.602,2556.7,2556.6,3.36928656]
[1748112431287,18.38402,2556.7,2556.6,3.36928656]
[1748112431587,17.602,2556.7,2556.6,3.36928656]
[1748112432298,17.602,2556.7,2556.6,3.36928429]
[1748112433500,18.38402,2556.7,2556.6,3.36928429]
[1748112434102,18.38402,2556.7,2556.6,3.36926855]
[1748112434905,0.78202,2556.7,2556.6,3.36926855]
[1748112435602,2.80947652,2556.8,2556.6,4.15130855]
[1748112435904,2.80947652,2556.8,2556.7,5.58293068]
[1748112435905,17.60685652,2556.8,2556.7,5.58293068]
[1748112436094,17.60685652,2556.8,2556.7,6.13335227]
[1748112436294,17.60685652,2556.8,2556.7,6.59024134]
[1748112436800,0.00585652,2556.8,2556.7,6.59024134]
[1748112437001,0.00585652,2556.8,2556.7,6.30884268]
[1748112437311,0.00585652,2556.8,2556.7,6.59016]
[1748112437605,0.00585652,2556.8,2556.7,6.59010421]
[1748112438202,0.00585652,2556.8,2556.7,6.30884268]
[1748112441513,0.00585652,2556.8,2556.7,11.30884268]
[1748112442219,21.59053,2557.7,2557.4,0.7818]
[1748112442512,1.3917,2557.6,2557.4,0.7818]
[1748112442708,1.3917,2557.6,2557.5,0.55043361]
[1748112443214,2.17344,2557.6,2557.5,0.55043361]
[1748112443612,1.3917,2557.6,2557.5,0.55043361]
[1748112443916,18.9917,2557.6,2557.5,1.33220361]
[1748112444115,18.9917,2557.6,2557.5,0.55043361]
[1748112444414,18.9917,2557.6,2557.5,1.96073361]
[1748112446114,19.77344,2557.6,2557.5,1.96073361]
[1748112446412,19.77344,2557.6,2557.5,0.55043361]
[1748112446712,18.9917,2557.6,2557.5,0.55043361]
[1748112449916,19.77344,2557.6,2557.5,0.55043361]
[1748112451719,18.9917,2557.6,2557.5,0.55043361]
[1748112452620,19.77344,2557.6,2557.5,0.55043361]
[1748112454619,1.3917,2557.6,2557.5,1.33220361]
[1748112454820,1.3917,2557.6,2557.5,0.78177]
[1748112455721,1.3917,2557.6,2557.4,5.37539]
[1748112455910,0.6914,2557.5,2557.4,5.37539]
[1748112457217,2.0508,2557.5,2557.4,5.37539]
[1748112457718,2.0508,2557.5,2557.4,4.55056233]
[1748112466926,2.0508,2557.5,2557.4,5.95296233]
[1748112467330,2.0508,2557.5,2557.4,6.4098514]
[1748112467921,0.69765652,2557.8,2557.7,0.78171]
[1748112468126,0.69765652,2557.8,2557.7,3.98951]
[1748112469634,0.69765652,2557.8,2557.7,1.34268233]
[1748112469832,1.38655652,2557.8,2557.7,1.34268233]
[1748112470336,1.38655652,2557.8,2557.7,4.55048233]
[1748112470533,1.38655652,2557.8,2557.7,5.0073714]
[1748112470928,2.69755652,2557.8,2557.7,5.0073714]
[1748112471828,2.69755652,2557.8,2557.7,4.55048233]
[1748112474729,2.69755652,2557.8,2557.7,5.87358233]
[1748112475637,1.31685652,2557.8,2557.7,5.87358233]
[1748112475831,0.00585652,2557.8,2557.7,5.87358233]
[1748112476032,0.00585652,2557.8,2557.7,6.90179408]
[1748112478135,0.00585652,2557.8,2557.7,3.69399408]
[1748112478342,0.00585652,2557.8,2557.7,6.90179408]
[1748112479637,0.00585652,2557.8,2557.7,6.9017481]
[1748112480040,0.00585652,2557.8,2557.7,6.35188233]
[1748112483644,0.00585652,2557.8,2557.7,6.96123955]
[1748112484843,0.78753652,2557.8,2557.7,1.17032955]
[1748112485052,0.00585652,2557.8,2557.7,1.95204955]
[1748112485249,1.42973652,2557.8,2557.7,1.95204955]
[1748112485450,1.33425652,2557.8,2557.7,1.95204955]
[1748112485951,2.64065652,2557.8,2557.7,1.95204955]
[1748112486156,2.64065652,2557.8,2557.7,1.79887714]
[1748112486553,2.64065652,2557.8,2557.7,5.00667714]
[1748112487356,3.42233652,2557.8,2557.7,1.01715714]
[1748112487655,8.42233652,2557.8,2557.7,1.01715714]
[1748112488256,0.78175,2557.6,2557.5,0.60935722]
[1748112488554,18.37275,2557.6,2557.5,0.60935722]
[1748112488857,18.37275,2557.6,2557.4,3.98959]
[1748112489056,1.2867,2557.5,2557.4,3.98959]
[1748112489351,2.06848,2557.5,2557.4,3.2078]
[1748112489950,1.2867,2557.5,2557.4,3.98961]
[1748112490951,18.8787,2557.5,2557.4,3.98961]
[1748112491249,1.2867,2557.5,2557.4,3.98961]
[1748112501063,1.2867,2557.5,2557.4,5.1578866]
[1748112502364,1.2867,2557.5,2557.4,4.54852938]
[1748112513978,2.06848,2557.5,2557.4,3.76671938]
[1748112516581,10.27628,2557.5,2557.4,0.55891938]
[1748112516966,0.78184,2557.3,2557.2,0.60935722]
[1748112517373,5.78184,2557.3,2557.2,0.60935722]
[1748112517678,5.78184,2557.3,2556.6,0.60935722]
[1748112517679,6.3037,2557.3,2556.6,0.60935722]
[1748112517879,0.78199,2556.9,2556.7,0.78203]
[1748112518081,3.3855,2556.8,2556.7,0.78203]
[1748112518283,3.3855,2556.8,2556.6,0.60935722]
[1748112518586,1.3037,2556.7,2556.6,1.39141722]
[1748112519476,1.3037,2556.7,2556.6,0.78206]
[1748112522884,2.08575,2556.7,2556.5,1.46692348]
[1748112523278,1.3665,2556.6,2556.5,1.46692348]
[1748112524085,2.14856,2556.6,2556.5,0.85756626]
[1748112524273,1.3665,2556.6,2556.5,0.85756626]
[1748112528492,2.14856,2556.6,2556.5,0.07549626]
[1748112528989,0.78218,2556.2,2556.1,0.91126377]
[1748112529191,18.37918,2556.2,2556.1,0.91126377]
[1748112530085,0.78224,2556.0,2555.9,3.99007]
[1748112530286,0.78224,2556.0,2555.9,3.2078]
[1748112530683,1.47764,2556.0,2555.9,3.2078]
[1748112531191,1.47764,2556.0,2555.9,3.75838104]
[1748112532095,1.47764,2556.0,2555.9,0.55058104]
[1748112532295,16.43664,2556.0,2555.9,0.55058104]
[1748112533493,0.7824,2555.5,2555.4,0.78241]
[1748112533889,2.0717,2555.9,2555.2,3.2078]
[1748112534091,0.78237,2555.6,2555.3,2.0612]
[1748112534394,1.3662,2555.8,2555.3,0.78243]
[1748112534594,0.7011,2555.5,2555.3,0.78243]
[1748112534788,2.028,2555.4,2555.3,0.78243]
[1748112535289,2.028,2555.4,2555.2,4.5201]
[1748112535488,1.3225,2555.3,2555.2,5.30259]
[1748112535995,2.10496,2555.3,2555.2,3.99029]
[1748112536388,2.10496,2555.3,2555.2,3.2078]
[1748112537295,1.3225,2555.3,2555.2,3.99029]
[1748112537796,2.10496,2555.3,2555.2,3.99029]
[1748112537997,1.3225,2555.3,2555.2,3.99029]
[1748112538802,1.2999,2555.7,2555.6,0.78237]
[1748112539099,0.78238,2555.6,2555.4,0.78241]
[1748112539300,0.78238,2555.6,2555.4,2.10811]
[1748112539799,0.78238,2555.6,2555.5,1.3257]
[1748112540191,0.78241,2555.5,2555.3,0.6432]
[1748112540392,2.07071,2555.5,2555.3,2.84245]
[1748112540700,0.78243,2555.4,2555.3,2.06]
[1748112540895,0.78243,2555.4,2555.3,0.6432]
[1748112542197,0.78246,2555.3,2555.2,3.2078]
[1748112543798,0.78246,2555.3,2554.9,3.0]
[1748112543799,0.78255,2555.0,2554.9,3.0]
[1748112544802,2.06275,2555.0,2554.9,3.0]
[1748112545303,7.06275,2555.0,2554.9,1.0665904]
[1748112546202,1.95647,2554.9,2553.9,4.11906377]
[1748112546403,0.78307,2553.3,2553.2,0.86573903]
[1748112546909,0.7831,2553.2,2553.1,0.31904387]
[1748112547102,1.3717,2553.2,2553.1,3.52684387]
[1748112547298,1.3717,2553.2,2553.1,3.2078]
[1748112547699,0.0058682,2553.4,2553.1,3.2078]
[1748112548095,0.7889082,2553.4,2553.2,0.6486]
[1748112548300,0.78307,2553.3,2553.2,0.6486]
[1748112548500,1.3775682,2553.4,2553.2,0.6486]
[1748112548712,2.1606082,2553.4,2553.2,0.6486]
[1748112549011,1.3775682,2553.4,2553.2,0.6486]
[1748112549215,0.0058682,2553.4,2553.2,0.6486]
[1748112549409,2.0219,2554.1,2553.3,15.041]
[1748112549603,0.78287,2554.0,2553.7,3.2078]
[1748112549904,3.2078,2554.6,2553.8,1.3683]
[1748112550098,3.2078,2554.6,2554.0,3.2078]
[1748112550305,0.7828,2554.2,2554.0,3.2078]
[1748112550505,0.78283,2554.1,2554.0,3.2078]
[1748112550710,0.6796682,2554.4,2553.8,16.4181682]
[1748112551009,0.78281,2554.2,2553.8,16.4181682]
[1748112551711,0.78283,2554.1,2553.8,16.4181682]
[1748112552809,0.78283,2554.1,2553.9,0.5296019]
[1748112553012,0.78286,2554.0,2553.9,0.5296019]
[1748112560617,0.78289,2553.9,2553.8,14.52932994]
[1748112560818,0.78289,2553.9,2553.8,17.73712994]
[1748112561610,0.78289,2553.9,2553.8,18.1896255]
[1748112567818,2.19429,2553.9,2553.8,18.1896255]
[1748112568420,2.19429,2553.9,2553.8,17.73712994]
[1748112568722,2.19429,2553.9,2553.8,3.2078]
[1748112569420,0.78295,2553.7,2553.6,0.45249556]
[1748112569720,0.78298,2553.6,2553.5,0.60452026]
[1748112570923,0.78301,2553.5,2553.4,0.44918499]
[1748112571124,2.78181,2553.5,2553.4,0.44918499]
[1748112572924,5.98961,2553.5,2553.4,0.52274684]
[1748112575626,0.78307,2553.3,2553.2,0.44918499]
[1748112576727,1.43137,2553.3,2553.2,0.44918499]
[1748112576927,0.7831,2553.2,2553.1,0.44918499]
[1748112577118,2.0872,2553.2,2553.1,0.44918499]
[1748112579128,2.08161123,2553.2,2553.1,0.44918499]
[1748112583633,0.78313,2553.1,2553.0,19.28898499]
[1748112583831,2.09583,2553.1,2553.0,19.28898499]
[1748112584531,5.30363,2553.1,2553.0,0.44918499]
[1748112585332,0.78322,2552.8,2552.7,0.44918499]
[1748112586531,2.10472,2552.8,2552.7,0.44918499]
[1748112586731,0.78326,2552.7,2552.6,0.6837]
[1748112586929,2.10476,2552.7,2552.6,0.6837]
[1748112587928,2.10476,2552.7,2552.6,1.20306461]
[1748112598443,2.10476,2552.7,2552.6,1.98635461]
[1748112598950,2.10476,2552.7,2552.6,1.20306461]
[1748112599147,2.10476,2552.7,2552.6,1.98635461]
[1748112599358,2.10476,2552.7,2552.6,1.20306461]
[1748112600552,2.10476,2552.7,2552.6,1.98635461]
[1748112600754,2.10476,2552.7,2552.6,1.6522496]
[1748112600954,2.10476,2552.7,2552.6,2.4355396]
[1748112602253,2.10476,2552.7,2552.6,1.6522496]
[1748112602454,2.10476,2552.7,2552.6,2.4355396]
[1748112602756,2.10476,2552.7,2552.6,1.6522496]
[1748112603556,2.10476,2552.7,2552.6,2.4355396]
[1748112603757,2.10476,2552.7,2552.6,1.6522496]
[1748112604164,1.3215,2552.7,2552.6,2.4355396]
[1748112605348,3.2078,2553.4,2552.6,6.6522496]
[1748112605654,3.2078,2553.7,2553.6,0.78298]
[1748112605961,3.99076,2553.7,2553.5,0.78299]
[1748112606258,1.3349,2553.6,2553.5,0.78299]
[1748112607758,1.3349,2553.6,2553.5,1.30235461]
[1748112611757,1.3349,2553.6,2553.5,1.84899124]
[1748112612458,1.3349,2553.6,2553.5,1.84889832]
[1748112612954,1.3349,2553.6,2553.5,1.84886865]
[1748112613259,2.11788,2553.6,2553.5,1.06587865]
[1748112614167,1.3349,2553.6,2553.5,1.84888865]
[1748112615467,1.3349,2553.6,2553.5,1.84865984]
[1748112616769,1.3349,2553.6,2553.5,1.30237461]
[1748112617968,2.11788,2553.6,2553.5,1.30237461]
[1748112618666,2.11788,2553.6,2553.5,0.51936461]
[1748112619472,2.11788,2553.6,2553.5,1.30237461]
[1748112630377,1.3349,2553.6,2553.5,1.30237461]
[1748112630681,2.11788,2553.6,2553.5,1.30237461]
[1748112630981,1.3349,2553.6,2553.5,1.30237461]
[1748112631681,2.11788,2553.6,2553.5,1.30237461]
[1748112633283,2.11788,2553.6,2553.5,1.7515596]
[1748112635784,2.11788,2553.6,2553.5,0.9685496]
[1748112636279,2.11788,2553.6,2553.5,1.12388487]
[1748112638984,5.32568,2553.6,2553.5,1.12388487]
[1748112639880,5.32568,2553.6,2553.5,0.51936461]
[1748112642985,0.78304,2553.4,2553.3,0.0058682]
[1748112643889,2.11094,2553.4,2553.3,0.0058682]
[1748112644185,2.11094,2553.4,2553.3,0.52404149]
[1748112652290,1.3279,2553.4,2553.3,1.30711149]
[1748112652487,2.11094,2553.4,2553.3,1.30711149]
[1748112652888,1.3279,2553.4,2553.3,1.30711149]
[1748112653995,2.11094,2553.4,2553.3,1.30711149]
[1748112654596,2.11094,2553.4,2553.3,0.52404149]
[1748112654893,2.11094,2553.4,2553.3,0.97605892]
[1748112656395,2.11094,2553.4,2553.3,0.52404149]
[1748112660201,1.3279,2553.4,2553.3,0.52404149]
[1748112660402,1.3279,2553.4,2553.3,1.30711149]
[1748112662304,1.3279,2553.4,2553.3,1.75912892]
[1748112663503,2.11094,2553.4,2553.3,1.75912892]
[1748112663698,1.3279,2553.4,2553.3,1.75912892]
[1748112665501,1.3279,2553.4,2553.3,2.93522892]
[1748112665903,2.11094,2553.4,2553.3,2.93522892]
[1748112667608,2.11094,2553.4,2553.3,2.15215892]
[1748112667908,2.11094,2553.4,2553.3,1.70014149]
[1748112668902,2.11094,2553.4,2553.3,0.52404149]
[1748112671210,7.11094,2553.4,2553.3,0.52404149]
[1748112671909,7.11094,2553.4,2553.3,0.51230509]
[1748112672808,7.11094,2553.4,2553.1,0.4516494]
[1748112672809,0.7831,2553.2,2553.1,0.4516494]
[1748112673109,0.78322,2552.9,2552.6,15.6836494]
[1748112673503,2.19402,2552.8,2552.7,0.78325]
[1748112673810,1.4108,2552.8,2552.7,0.78325]
[1748112674009,2.19402,2552.8,2552.7,0.78325]
[1748112674412,1.4108,2552.8,2552.7,0.78325]
[1748112675212,2.19402,2552.8,2552.7,0.78325]
[1748112677507,1.3969,2553.3,2553.2,0.7831]
[1748112677811,15.234,2553.7,2553.2,0.7831]
[1748112678012,18.40605,2553.4,2553.3,0.6869]
[1748112678715,19.75305,2553.4,2553.3,0.6869]
[1748112682111,2.13004,2553.4,2553.3,0.6869]
[1748112683316,2.13007,2553.4,2553.2,0.78309]
[1748112683516,2.10277,2553.3,2553.1,0.4516494]
[1748112683719,1.3197,2553.2,2553.1,0.4516494]
[1748112684217,1.3197,2553.2,2553.1,1.2347794]
[1748112685117,1.3197,2553.2,2553.1,1.74987605]
[1748112689421,1.3197,2553.2,2553.1,2.92627605]
[1748112690120,3.91,2553.5,2553.4,0.78304]
[1748112690823,0.7022,2553.5,2553.4,0.78304]
[1748112691523,0.7022,2553.5,2553.4,1.29813665]
[1748112695632,1.9856,2553.5,2553.4,1.29813665]
[1748112696430,2.76861,2553.5,2553.4,0.51509665]
[1748112696632,5.97641,2553.5,2553.4,0.51509665]
[1748112696832,1.9856,2553.5,2553.4,1.29813665]
[1748112699742,1.9856,2553.5,2553.4,1.93883665]
[1748112701232,1.9856,2553.5,2553.4,0.51509665]
[1748112701434,1.9856,2553.5,2553.4,1.29813665]
[1748112701435,2.76861,2553.5,2553.4,1.29813665]
[1748112701644,0.78326,2552.7,2552.6,0.14268412]
[1748112701831,1.95812,2552.8,2552.2,0.45664817]
[1748112702136,3.2078,2552.3,2551.8,3.0]
[1748112702338,3.2136682,2552.3,2552.2,0.78341]
[1748112710348,8.2136682,2552.3,2551.8,3.0]
[1748112710548,3.2078,2551.9,2551.8,3.78352]
[1748112711042,4.4905,2552.2,2552.0,0.78346]
[1748112711254,4.4905,2552.2,2552.1,0.78344]
[1748112711742,4.4905,2552.2,2552.0,0.78345]
[1748112711942,4.4905,2552.2,2552.1,0.78344]
[1748112712149,4.4905,2552.2,2552.0,0.78347]
[1748112712349,4.4905,2552.2,2552.1,0.78344]
[1748112712543,5.27391,2552.2,2552.0,1.43815]
[1748112712849,4.4905,2552.2,2552.1,0.78344]
[1748112713742,4.4905,2552.2,2552.1,2.18934]
[1748112714144,5.27393,2552.2,2552.0,0.6547]
[1748112714453,0.78344,2552.1,2552.0,0.6547]
[1748112714751,2.16984,2552.1,2552.0,0.6547]
[1748112715052,1.3864,2552.1,2552.0,0.6547]
[1748112715452,2.16984,2552.1,2552.0,0.6547]
[1748112715847,2.16984,2552.1,2552.0,1.43817]
[1748112716353,2.16984,2552.1,2552.0,0.6547]
[1748112716552,1.3864,2552.1,2552.0,1.43817]
[1748112717754,2.16984,2552.1,2552.0,1.43817]
[1748112718952,2.86794,2552.1,2552.0,1.43817]
[1748112719250,2.86794,2552.1,2552.0,0.6547]
[1748112720146,0.78344,2552.1,2552.0,0.6547]
[1748112720354,0.78344,2552.1,2552.0,2.0207]
[1748112721249,0.78344,2552.1,2551.8,3.0]
[1748112721250,0.7835,2551.9,2551.8,3.0]
[1748112721556,3.9913,2551.9,2551.8,3.0]
[1748112722054,5.3655,2551.9,2551.8,3.0]
[1748112723551,4.582,2551.9,2551.8,3.78353]
[1748112723854,3.9913,2551.9,2551.8,5.75163]
[1748112724254,3.2078,2551.9,2551.8,5.75163]
[1748112725454,3.9913,2551.9,2551.8,5.75163]
[1748112726148,3.9913,2551.9,2551.8,4.9681]
[1748112726451,0.78375,2551.1,2551.0,0.89059895]
[1748112726651,3.99155,2551.1,2551.0,0.89059895]
[1748112726850,21.62255,2551.1,2551.0,0.89059895]
[1748112727047,0.78384,2550.8,2550.7,1.18881402]
[1748112727250,19.43564,2550.8,2550.7,4.02e-06]
[1748112727556,1.95976,2550.6,2550.0,4.48631616]
[1748112727756,3.99185,2550.1,2550.0,3.0]
[1748112728154,3.2078,2550.1,2550.0,3.0]
[1748112728452,3.2078,2550.5,2550.0,3.0]
[1748112728657,3.2078,2550.5,2550.1,2.09334]
[1748112728853,0.78397,2550.4,2550.2,1.367]
[1748112729055,0.78396,2550.4,2550.2,1.367]
[1748112729253,0.78405,2550.1,2550.0,3.0]
[1748112729553,3.99185,2550.1,2550.0,3.0]
[1748112730152,3.2078,2550.1,2550.0,3.0]
[1748112730350,3.2078,2550.1,2550.0,3.78408]
[1748112730551,3.99185,2550.1,2550.0,3.0]
[1748112730956,3.2078,2550.1,2550.0,3.0]
[1748112732059,3.2078,2550.1,2550.0,3.78408]
[1748112733462,3.20166214,2550.1,2550.0,3.78408]
[1748112734059,4.5238,2550.5,2550.4,0.78396]
[1748112734258,4.5238,2550.5,2550.3,0.78398]
[1748112734960,4.5238,2550.5,2550.4,0.78396]
[1748112735664,4.5238,2550.5,2550.2,1.3946]
[1748112735859,4.5238,2550.5,2550.4,0.78396]
[1748112736259,3.2078,2550.5,2550.4,0.78396]
[1748112736561,1.44472,2550.9,2550.7,0.78384]
[1748112736762,1.3733,2550.9,2550.8,0.78384]
[1748112737062,2.15712,2550.9,2550.7,0.78385]
[1748112738267,2.15713,2550.9,2550.7,0.78386]
[1748112738570,2.15713,2550.9,2550.8,0.78384]
[1748112738766,2.15712,2550.9,2550.7,0.78385]
[1748112738961,2.15712,2550.9,2550.4,18.6588]
[1748112738962,2.15712,2550.9,2550.8,1.4108]
[1748112739261,1.3733,2550.9,2550.8,2.19464]
[1748112740368,2.15711,2550.9,2550.8,2.19464]
[1748112740668,0.00587993,2551.0,2550.9,0.78381]
[1748112740856,0.78965993,2551.0,2550.9,0.78381]
[1748112741261,0.78965993,2551.0,2550.6,1.95975]
[1748112741464,1.35177993,2551.0,2550.9,0.78381]
[1748112741670,2.13555993,2551.0,2550.9,0.78381]
[1748112742972,1.35177993,2551.0,2550.9,0.78381]
[1748112745169,1.35177993,2551.0,2550.7,1.3774]
[1748112745375,0.78402,2550.2,2550.1,0.6963]
[1748112745769,2.72925,2550.5,2550.1,0.6963]
[1748112745969,1.9453,2550.5,2550.3,0.78398]
[1748112746172,2.72926,2550.5,2550.3,0.78397]
[1748112746369,0.78396,2550.4,2550.3,0.78397]
[1748112746569,2.07736,2550.4,2550.3,0.78397]
[1748112746873,1.2934,2550.4,2550.2,1.3294]
[1748112747066,2.07737,2550.4,2550.2,2.1134]
[1748112747266,0.78399,2550.3,2550.2,2.1134]
[1748112747566,2.10629,2550.3,2550.2,2.1134]
[1748112747767,2.10629,2550.3,2550.2,0.784]
[1748112748168,2.10629,2550.3,2550.1,0.6963]
[1748112748368,2.10629,2550.3,2550.2,0.78402]
[1748112748773,0.78402,2550.2,2550.1,0.6963]
[1748112748972,1.3223,2550.2,2550.1,1.48035]
[1748112749172,0.6519,2550.5,2550.2,0.784]
[1748112749483,2.10627,2550.4,2550.2,1.3642]
[1748112750071,0.78399,2550.3,2550.2,1.3642]
[1748112750574,0.78399,2550.3,2550.0,3.6811]
[1748112750575,0.78405,2550.1,2550.0,3.0]
[1748112750774,3.2078,2550.3,2550.0,3.78406]
[1748112750974,0.78403,2550.2,2550.1,1.3208]
[1748112753276,0.78403,2550.2,2550.0,3.78406]
[1748112753277,0.78405,2550.1,2550.0,3.0]
[1748112756175,0.78405,2550.1,2550.0,3.78408]
[1748112756379,0.78405,2550.1,2550.0,3.47291514]
[1748112758880,0.78405,2550.1,2550.0,4.25699514]
[1748112759581,0.78405,2550.1,2550.0,3.47291514]
[1748112759783,20.994,2550.1,2549.1,3.2078]
[1748112760080,0.78436,2549.1,2548.7,2.712]
[1748112760281,3.99216,2549.1,2548.8,0.78443]
[1748112760680,5.37316,2549.1,2548.8,0.78445]
[1748112761184,5.37316,2549.1,2548.7,3.49646]
[1748112761483,5.37316,2549.1,2548.7,3.49647]
[1748112761684,0.78444,2548.9,2548.7,3.49647]
[1748112761983,1.381,2548.8,2548.7,3.49647]
[1748112763688,1.381,2548.8,2548.4,3.2078]
[1748112763689,0.7845,2548.7,2548.5,0.78454]
[1748112763884,0.7845,2548.7,2548.5,1.3851]
[1748112764185,1.3299,2548.6,2548.5,1.3851]
[1748112764484,2.11442,2548.6,2548.5,1.3851]
[1748112764686,1.3299,2548.6,2548.5,1.3851]
[1748112764888,3.2078,2548.8,2548.7,0.78448]
[1748112765091,4.5377,2549.1,2548.5,4.5929]
[1748112765591,0.78441,2549.0,2548.5,17.3821]
[1748112765883,2.13801,2549.0,2548.7,0.78446]
[1748112766076,2.13802,2549.0,2548.8,1.3846]
[1748112766290,1.3536,2549.0,2548.8,1.3846]
[1748112766487,0.78442,2548.9,2548.8,1.3846]
[1748112768188,2.13801,2549.0,2548.8,1.3846]
[1748112768391,0.78442,2548.9,2548.8,1.3846]
[1748112768688,2.13801,2549.0,2548.8,2.16903]
[1748112768887,0.78442,2548.9,2548.8,1.3846]
[1748112769090,2.14502,2548.9,2548.8,1.3846]
[1748112769288,2.14502,2548.9,2548.8,2.16905]
[1748112769482,1.3606,2548.9,2548.8,1.3846]
[1748112769677,1.3606,2548.9,2548.8,2.16905]
[1748112769889,0.78447,2548.8,2548.4,0.6983]
[1748112770092,0.78447,2548.8,2548.6,1.3199]
[1748112770278,2.14504,2548.9,2548.7,0.78446]
[1748112770479,0.78447,2548.8,2548.6,1.3199]
[1748112770786,0.78445,2548.8,2548.7,0.78447]
[1748112771091,0.78448,2548.7,2548.6,2.1044]
[1748112771287,3.99228,2548.8,2548.7,0.78448]
[1748112771486,3.99228,2548.8,2548.7,1.4101]
[1748112771686,3.99228,2548.8,2548.4,16.6983]
[1748112771990,3.99228,2548.8,2548.6,0.78449]
[1748112772191,0.78452,2548.6,2548.4,0.6983]
[1748112772588,0.78452,2548.6,2548.5,0.78455]
[1748112772783,3.2078,2548.8,2548.6,0.78451]
[1748112773088,0.78451,2548.7,2548.5,0.78454]
[1748112773386,3.99228,2548.8,2548.6,0.7845]
[1748112773594,0.78448,2548.7,2548.6,0.7845]
[1748112773887,0.78448,2548.7,2548.5,0.78452]
[1748112774194,0.78448,2548.7,2548.6,0.78449]
[1748112774387,0.78453,2548.6,2548.4,1.48286]
[1748112774585,3.99235,2548.5,2548.4,0.6983]
[1748112774991,3.2078,2548.5,2548.4,1.48288]
[1748112775195,3.99235,2548.5,2548.4,0.6983]
[1748112775389,3.99235,2548.5,2548.4,1.48288]
[1748112776191,3.2078,2548.5,2548.4,1.48288]
[1748112780692,3.2078,2548.8,2548.4,1.48288]
[1748112780897,3.2078,2549.1,2548.5,1.2804]
[1748112781098,3.2078,2549.1,2548.6,1.96129]
[1748112781299,3.99218,2549.1,2548.9,0.78439]
[1748112781493,3.99218,2549.1,2549.0,0.6812]
[1748112783794,3.2078,2549.1,2549.0,1.46559]
[1748112785403,3.99216,2549.1,2549.0,0.6812]
[1748112785592,3.2078,2549.1,2549.0,0.6812]
[1748112785797,3.2078,2549.1,2549.0,1.46559]
[1748112786700,3.99216,2549.1,2549.0,1.46559]
[1748112787001,8.2078,2549.1,2548.6,0.44078784]
[1748112787305,3.99228,2548.7,2548.6,0.44078784]
[1748112787501,0.78451,2548.6,2548.5,0.44078784]
[1748112788006,5.78451,2548.6,2548.5,0.44078784]
[1748112788706,0.78451,2548.6,2548.5,0.44078784]
[1748112789300,5.16903,2548.7,2548.1,0.78467]
[1748112789603,3.2078,2548.3,2548.1,0.78467]
[1748112790200,3.99242,2548.3,2548.2,0.6418]
[1748112791301,3.99242,2548.3,2548.2,1.10522064]
[1748112791896,3.99242,2548.3,2548.2,0.46342064]
[1748112793009,0.7847,2548.0,2547.9,0.678]
[1748112793306,0.7847,2548.0,2547.7,0.44078784]
[1748112793307,0.78476,2547.8,2547.7,0.44078784]
[1748112793712,23.43776,2547.8,2547.7,0.44078784]
[1748112794011,24.84436,2547.8,2547.7,0.44078784]
[1748112794401,40.83136,2547.8,2547.7,0.44078784]
[1748112794910,0.7849,2547.4,2547.3,0.78491]
[1748112795106,3.2078,2547.4,2547.3,0.78491]
[1748112795309,3.2078,2547.7,2547.3,7.18851]
[1748112795607,3.2078,2547.7,2547.6,0.78482]
[1748112796099,4.5568,2547.7,2547.6,0.78482]
[1748112796306,4.5568,2547.7,2547.3,17.3926]
[1748112796499,5.34161,2547.7,2547.4,0.78488]
[1748112796707,5.34161,2547.7,2547.0,0.678]
[1748112796708,0.78499,2547.1,2546.5,19.1968]
[1748112796902,1.349,2547.0,2546.9,0.78503]
[1748112797307,1.349,2547.0,2546.9,0.88284681]
[1748112797502,1.349,2547.0,2546.5,6.34802883]
[1748112797503,0.78513,2546.6,2546.5,1.17736883]
[1748112797710,26.64993,2546.6,2546.5,1.17736883]
[1748112798003,3.2078,2546.6,2546.5,1.96252883]
[1748112798208,3.2078,2546.9,2546.5,1.17736883]
[1748112798510,3.2078,2546.9,2546.6,1.3955]
[1748112798700,3.2078,2546.9,2546.7,0.78508]
[1748112798898,3.2078,2546.9,2546.7,0.7851]
[1748112799202,3.2078,2546.9,2546.8,0.78507]
[1748112799508,3.2078,2547.2,2547.1,0.78498]
[1748112800315,0.78507,2546.8,2546.7,0.45512865]
[1748112800509,21.65287,2546.8,2546.7,0.45512865]
[1748112800804,21.65287,2546.8,2546.5,0.44016826]
[1748112800805,0.78513,2546.6,2546.5,0.44016826]
[1748112801010,0.78513,2546.6,2546.5,8.26e-06]
[1748112801204,5.78513,2546.6,2546.5,8.26e-06]
[1748112802615,5.0,2546.6,2545.7,1.3282]
[1748112802813,3.99305,2546.2,2545.8,0.78536]
[1748112803005,3.99305,2546.2,2545.7,1.3282]
[1748112803205,3.99305,2546.2,2545.8,0.78536]
[1748112803419,3.2078,2546.2,2545.7,1.3282]
[1748112803612,3.99305,2546.2,2545.7,2.11359]
[1748112804211,3.99305,2546.2,2545.4,0.6665]
[1748112804410,3.99305,2546.2,2545.7,0.78539]
[1748112804610,3.99305,2546.2,2545.5,1.3699]
[1748112805115,8.99305,2546.2,2546.1,1.66881]
[1748112806216,0.78545,2545.6,2545.0,5.2581]
[1748112806510,3.2078,2545.5,2545.4,0.7855]
[1748112806715,4.6106,2545.5,2545.4,0.7855]
[1748112807010,1.4028,2545.5,2545.4,0.7855]
[1748112807210,1.4028,2545.5,2545.0,5.2581]